bitfinex/quotes_BTCUSD_20241011
["timestamp","ask_amount","ask_price","bid_price","bid_amount"]
[1728672309428,0.21032717,62936.0,62935.0,0.17300389]
[1728672309638,0.05143617,62936.0,62935.0,0.17300389]
[1728672309833,0.05143181,62936.0,62935.0,0.4931219]
[1728672310041,0.02767131,62936.0,62935.0,0.50281415]
[1728672310247,0.05143159,62936.0,62935.0,0.34392015]
[1728672310446,0.04443159,62936.0,62935.0,0.34292015]
[1728672310672,0.04243159,62936.0,62935.0,0.34292015]
[1728672311066,0.04443159,62936.0,62935.0,0.34292015]
[1728672311321,0.03943159,62936.0,62935.0,0.34292015]
[1728672312156,0.03943159,62936.0,62935.0,0.18469614]
[1728672312356,0.19832259,62936.0,62935.0,0.18469614]
[1728672312563,0.03943159,62936.0,62935.0,0.17700389]
[1728672312764,0.19832259,62936.0,62935.0,0.1866618]
[1728672314109,0.03943159,62936.0,62935.0,0.1866618]
[1728672315721,0.13883036,62936.0,62935.0,0.1866618]
[1728672316890,0.13882668,62936.0,62935.0,0.1866618]
[1728672317243,0.13882668,62936.0,62935.0,0.17700389]
[1728672317655,0.19831891,62936.0,62935.0,0.00640389]
[1728672317860,0.47851645,62936.0,62935.0,0.00640389]
[1728672318088,0.57851645,62936.0,62935.0,0.00640389]
[1728672318740,0.57851645,62936.0,62935.0,0.00440389]
[1728672318957,0.58151645,62936.0,62935.0,0.00440389]
[1728672319673,0.58151645,62936.0,62935.0,0.00140389]
[1728672320285,0.50011645,62936.0,62935.0,0.00140389]
[1728672320421,0.50211645,62936.0,62935.0,0.00140389]
[1728672323552,0.50212548,62936.0,62935.0,0.00140389]
[1728672326911,0.46350954,62936.0,62935.0,0.00140389]
[1728672327129,0.50212542,62936.0,62935.0,0.00140389]
[1728672329061,0.46350954,62936.0,62935.0,0.00140389]
[1728672329263,0.50211506,62936.0,62935.0,0.00140389]
[1728672330304,0.46350954,62936.0,62935.0,0.00140389]
[1728672330723,0.502115,62936.0,62935.0,0.00140389]
[1728672333946,0.502115,62936.0,62919.0,0.0829]
[1728672333947,0.005,62928.0,62919.0,0.0829]
[1728672334163,0.35772854,62920.0,62919.0,0.0829]
[1728672334372,0.3963316,62920.0,62919.0,0.0829]
[1728672334572,0.3963316,62920.0,62919.0,0.01487694]
[1728672334792,0.3963316,62920.0,62917.0,0.0919]
[1728672334994,0.158937,62918.0,62917.0,0.0919]
[1728672335228,0.29693883,62918.0,62917.0,0.10677698]
[1728672336199,0.29669847,62918.0,62917.0,0.10677698]
[1728672336778,0.29669847,62918.0,62917.0,0.11177698]
[1728672337457,0.29669847,62918.0,62917.0,0.0969]
[1728672337458,0.25809541,62918.0,62917.0,0.0969]
[1728672337671,0.29666346,62918.0,62917.0,0.11576945]
[1728672338061,0.2966628,62918.0,62917.0,0.11576945]
[1728672339296,0.29666109,62918.0,62917.0,0.11576945]
[1728672341171,0.2966589,62918.0,62917.0,0.11076945]
[1728672344640,0.2966589,62918.0,62917.0,0.0959]
[1728672344641,0.25809541,62918.0,62917.0,0.0959]
[1728672344841,0.29668586,62918.0,62917.0,0.11077383]
[1728672347229,0.29668586,62918.0,62917.0,0.11241583]
[1728672348172,0.25809541,62918.0,62917.0,0.097542]
[1728672348407,0.29670328,62918.0,62917.0,0.11242358]
[1728672348879,0.01484918,62918.0,62917.0,0.27136258]
[1728672349148,0.01484918,62918.0,62917.0,0.34966258]
[1728672349578,0.09939877,62922.0,62918.0,0.1829]
[1728672349824,0.09939877,62924.0,62919.0,0.56322603]
[1728672350040,0.01746946,62928.0,62927.0,0.341814]
[1728672350248,0.03232347,62928.0,62927.0,0.51791959]
[1728672351268,0.01746946,62928.0,62927.0,0.51791959]
[1728672351895,0.03231787,62928.0,62927.0,0.51791959]
[1728672352507,0.03231787,62928.0,62927.0,0.52891959]
[1728672354132,0.01746946,62928.0,62927.0,0.52891959]
[1728672354503,0.03231275,62928.0,62927.0,0.52891959]
[1728672354934,0.01746946,62928.0,62927.0,0.51403801]
[1728672355181,0.03231223,62928.0,62927.0,0.52890573]
[1728672356011,0.01746946,62928.0,62927.0,0.52390573]
[1728672356232,0.03231067,62928.0,62927.0,0.51790573]
[1728672356436,0.01746946,62928.0,62927.0,0.51890573]
[1728672356840,0.03231113,62928.0,62927.0,0.51890573]
[1728672357496,0.01746946,62928.0,62927.0,0.51890573]
[1728672357831,0.01746946,62928.0,62927.0,0.54190573]
[1728672358235,0.01746946,62928.0,62927.0,0.54354773]
[1728672358437,0.01746946,62928.0,62927.0,0.52868001]
[1728672358685,0.01746946,62928.0,62927.0,0.54354039]
[1728672359308,0.01746946,62928.0,62927.0,0.52868001]
[1728672359684,0.000821,62936.0,62931.0,0.158903]
[1728672359891,0.23875466,62933.0,62932.0,0.01485845]
[1728672360165,0.16234706,62933.0,62932.0,0.01485845]
[1728672360332,0.16234706,62933.0,62929.0,0.01485859]
[1728672360333,0.03857374,62933.0,62929.0,0.01485859]
[1728672360533,0.55654266,62935.0,62927.0,0.185542]
[1728672360534,0.158911,62928.0,62927.0,0.185542]
[1728672360738,0.32125806,62928.0,62927.0,0.002642]
[1728672360889,0.32125806,62928.0,62927.0,0.01750088]
[1728672361086,0.30642111,62928.0,62927.0,0.01750088]
[1728672361288,0.32125389,62928.0,62927.0,0.01650088]
[1728672361487,0.16234289,62928.0,62927.0,0.01650088]
[1728672361754,0.32125389,62928.0,62927.0,0.01650088]
[1728672362153,0.32125389,62928.0,62927.0,0.01750088]
[1728672362354,0.16234289,62928.0,62927.0,0.01750088]
[1728672363246,0.14751011,62928.0,62927.0,0.01750088]
[1728672363456,0.16233902,62928.0,62927.0,0.01750088]
[1728672363873,0.32125002,62928.0,62927.0,0.01750088]
[1728672364772,0.30642111,62928.0,62927.0,0.01750088]
[1728672364982,0.32125015,62928.0,62927.0,0.01750088]
[1728672366001,0.41693717,62928.0,62927.0,0.01750088]
[1728672366210,0.34497516,62928.0,62927.0,0.002642]
[1728672368327,0.34498314,62928.0,62927.0,0.002642]
[1728672368534,0.34498535,62928.0,62927.0,0.002642]
[1728672368875,0.34503833,62928.0,62927.0,0.002642]
[1728672369544,0.34585933,62928.0,62927.0,0.002642]
[1728672373688,0.19829624,62928.0,62927.0,0.002642]
[1728672373889,0.34585933,62928.0,62927.0,0.002642]
[1728672375276,0.30729509,62928.0,62927.0,0.002642]
[1728672375483,0.34589146,62928.0,62927.0,0.002642]
[1728672376412,0.59345455,62928.0,62927.0,0.002642]
[1728672376627,0.59845455,62928.0,62927.0,0.002642]
[1728672377031,0.53674355,62928.0,62917.0,0.001642]
[1728672377194,0.30650009,62918.0,62917.0,0.001642]
[1728672377509,0.34509646,62918.0,62917.0,0.001642]
[1728672377757,0.49265955,62918.0,62917.0,0.001642]
[1728672378294,0.007,62907.0,62902.0,0.23875466]
[1728672378508,0.40653709,62903.0,62902.0,0.23875466]
[1728672378762,0.40653709,62903.0,62900.0,0.05636364]
[1728672378763,0.258979,62901.0,62900.0,0.05636364]
[1728672378979,0.55411818,62896.0,62895.0,0.00164]
[1728672379187,0.42137198,62896.0,62895.0,0.00164]
[1728672379406,0.44507901,62896.0,62895.0,0.00164]
[1728672380364,0.42137198,62896.0,62895.0,0.00164]
[1728672381572,0.42337198,62896.0,62895.0,0.00164]
[1728672381807,0.42137198,62896.0,62895.0,0.00164]
[1728672382280,0.42337198,62896.0,62895.0,0.00164]
[1728672382516,0.42331251,62896.0,62895.0,0.00164]
[1728672384185,0.40855509,62896.0,62895.0,0.00164]
[1728672385363,0.58116839,62896.0,62895.0,0.00164]
[1728672386114,0.5664236,62896.0,62895.0,0.00164]
[1728672386362,0.91352362,62896.0,62895.0,0.00164]
[1728672386619,0.58951859,62896.0,62895.0,0.00164]
[1728672389419,0.58950901,62896.0,62895.0,0.00164]
[1728672389941,0.5747791,62896.0,62895.0,0.00164]
[1728672390179,0.58950792,62896.0,62895.0,0.00164]
[1728672393564,0.58951005,62896.0,62895.0,0.00164]
[1728672394326,0.27572295,62896.0,62895.0,0.00164]
[1728672394560,0.260992,62896.0,62895.0,0.00164]
[1728672394797,0.40855509,62896.0,62895.0,0.00164]
[1728672398305,0.42330163,62896.0,62895.0,0.00164]
[1728672400173,9.50671863,62896.0,62895.0,0.00164]
[1728672400660,9.6249877,62896.0,62895.0,0.00164]
[1728672400840,9.50673466,62896.0,62895.0,0.00164]
[1728672402315,9.53038032,62896.0,62895.0,0.00164]
[1728672404030,9.53041587,62896.0,62895.0,0.00164]
[1728672407342,9.52841587,62896.0,62895.0,0.00164]
[1728672407605,9.12186078,62896.0,62895.0,0.09264]
[1728672407861,9.12286078,62896.0,62895.0,0.16834]
[1728672408566,9.12286078,62896.0,62895.0,0.48855901]
[1728672409018,9.12186078,62896.0,62895.0,0.48855901]
[1728672409242,9.12186078,62896.0,62895.0,0.49355901]
[1728672409243,9.09820307,62896.0,62895.0,0.49355901]
[1728672409474,9.09820307,62896.0,62895.0,0.48855901]
[1728672409699,9.06240574,62896.0,62895.0,0.48855901]
[1728672409960,9.06340574,62896.0,62895.0,0.48855901]
[1728672410713,9.06240574,62896.0,62895.0,0.48855901]
[1728672410925,9.06345698,62896.0,62895.0,0.48855901]
[1728672411126,9.06345702,62896.0,62895.0,0.48855901]
[1728672412176,9.06345702,62896.0,62895.0,0.32956401]
[1728672413952,9.4937329,62896.0,62895.0,0.00164]
[1728672414382,9.49371219,62896.0,62895.0,0.00164]
[1728672415213,9.49271219,62896.0,62895.0,0.00164]
[1728672415416,9.49271219,62896.0,62895.0,0.00664]
[1728672416064,9.49271219,62896.0,62895.0,0.01064]
[1728672417696,9.4927162,62896.0,62895.0,0.01064]
[1728672417954,9.64027929,62896.0,62895.0,0.01064]
[1728672418164,9.4927162,62896.0,62895.0,0.01064]
[1728672418783,9.4927162,62896.0,62895.0,0.00164]
[1728672418989,9.4977162,62896.0,62895.0,0.00164]
[1728672419402,9.4947162,62896.0,62895.0,0.00164]
[1728672419828,9.47399839,62896.0,62895.0,0.00164]
[1728672421027,9.47399662,62896.0,62895.0,0.00164]
[1728672424033,9.47399475,62896.0,62895.0,0.00164]
[1728672426340,9.62655784,62896.0,62895.0,0.00164]
[1728672426521,9.78778185,62896.0,62895.0,0.00164]
[1728672427403,9.77296186,62896.0,62895.0,0.00164]
[1728672427599,9.7877796,62896.0,62895.0,0.00164]
[1728672430892,9.78777227,62896.0,62895.0,0.00164]
[1728672431315,9.92608416,62896.0,62895.0,0.00164]
[1728672432166,9.78777227,62896.0,62895.0,0.00164]
[1728672432328,0.40657309,62889.0,62888.0,0.06482375]
[1728672432546,0.4213835,62889.0,62888.0,0.06482375]
[1728672433002,0.4213738,62889.0,62888.0,0.06482375]
[1728672433571,0.4213738,62889.0,62888.0,0.06982375]
[1728672434664,0.4213738,62889.0,62888.0,0.07382375]
[1728672435095,0.57591618,62889.0,62888.0,0.07382375]
[1728672436228,0.57591618,62889.0,62888.0,0.06982375]
[1728672436443,0.57591618,62889.0,62888.0,0.06482375]
[1728672436670,0.57891618,62889.0,62888.0,0.06582375]
[1728672436891,0.58191618,62889.0,62888.0,0.06682375]
[1728672437118,0.4273738,62889.0,62888.0,0.06682375]
[1728672438078,0.4243738,62889.0,62888.0,0.06582375]
[1728672438299,0.4243738,62889.0,62888.0,0.06664475]
[1728672438531,0.4273738,62889.0,62888.0,0.06764475]
[1728672443004,0.27981071,62889.0,62888.0,0.06764475]
[1728672443215,0.4273738,62889.0,62888.0,0.06764475]
[1728672443422,0.42718144,62889.0,62888.0,0.06764475]
[1728672443859,0.49594045,62889.0,62888.0,0.06764475]
[1728672444091,0.42718144,62889.0,62888.0,0.06764475]
[1728672448155,0.42718144,62889.0,62888.0,0.002821]
[1728672451930,0.4272355,62889.0,62888.0,0.002821]
[1728672452409,0.4272355,62889.0,62888.0,0.081821]
[1728672452644,0.37920002,62889.0,62888.0,0.081821]
[1728672452892,0.27967241,62889.0,62888.0,0.081821]
[1728672453177,0.37920002,62889.0,62888.0,0.081821]
[1728672453917,0.37920002,62889.0,62888.0,0.09672203]
[1728672454161,0.37620002,62889.0,62888.0,0.09572203]
[1728672454429,0.02085477,62889.0,62888.0,0.19382203]
[1728672454633,0.02085477,62889.0,62888.0,0.51405804]
[1728672454839,0.01785477,62889.0,62888.0,0.51305804]
[1728672455259,0.02085477,62889.0,62888.0,0.51305804]
[1728672455443,0.02086247,62889.0,62888.0,0.51305804]
[1728672455682,0.02086247,62889.0,62888.0,0.35904604]
[1728672456106,0.02086247,62889.0,62888.0,0.51805804]
[1728672456351,0.006,62889.0,62888.0,0.51805804]
[1728672457011,0.003,62889.0,62888.0,0.51805804]
[1728672457468,0.003,62889.0,62888.0,0.36304604]
[1728672458880,0.003,62889.0,62888.0,0.36302449]
[1728672459584,0.003,62889.0,62888.0,0.20180048]
[1728672460282,0.003,62889.0,62888.0,0.2017972]
[1728672462254,0.003,62889.0,62888.0,0.2017923]
[1728672462483,0.003821,62889.0,62888.0,0.2166636]
[1728672468561,0.003821,62889.0,62888.0,0.54007963]
[1728672468782,0.003821,62889.0,62888.0,0.53689961]
[1728672469024,0.003821,62889.0,62888.0,0.52202831]
[1728672469257,0.003821,62889.0,62888.0,0.36301631]
[1728672469479,0.003821,62889.0,62888.0,0.53689172]
[1728672470436,0.003821,62889.0,62888.0,0.52202042]
[1728672472530,0.003821,62889.0,62888.0,0.50715701]
[1728672473023,0.003821,62889.0,62888.0,0.52202094]
[1728672475348,0.003821,62889.0,62888.0,0.36300894]
[1728672476056,0.003821,62889.0,62888.0,0.36301134]
[1728672478747,0.003821,62889.0,62888.0,0.20178733]
[1728672479176,0.003821,62889.0,62888.0,0.02468733]
[1728672479177,0.44391909,62889.0,62888.0,0.02468733]
[1728672479395,0.42905501,62889.0,62888.0,0.009821]
[1728672479608,0.44391811,62889.0,62888.0,0.009821]
[1728672480078,0.44591811,62889.0,62888.0,0.005821]
[1728672480513,0.60728782,62889.0,62888.0,0.005821]
[1728672480952,0.60728782,62889.0,62888.0,0.000821]
[1728672480953,0.60428782,62889.0,62888.0,0.000821]
[1728672481585,0.60228782,62889.0,62888.0,0.000821]
[1728672481838,0.60228782,62889.0,62876.0,0.00164]
[1728672481839,0.57693064,62877.0,62876.0,0.00164]
[1728672482071,0.77249946,62877.0,62876.0,0.00164]
[1728672482283,0.79979244,62877.0,62876.0,0.00164]
[1728672482951,0.81795615,62877.0,62876.0,0.00164]
[1728672483187,0.77047205,62877.0,62876.0,0.00164]
[1728672483638,0.77647205,62877.0,62876.0,0.00364]
[1728672489142,0.77641686,62877.0,62876.0,0.00364]
[1728672489353,0.93778657,62877.0,62876.0,0.00364]
[1728672489820,0.77641686,62877.0,62876.0,0.00364]
[1728672490033,0.75881686,62877.0,62876.0,0.00364]
[1728672493069,0.74403636,62877.0,62876.0,0.00364]
[1728672493275,0.75880191,62877.0,62876.0,0.00364]
[1728672494361,0.55934064,62873.0,62872.0,0.00164]
[1728672494567,0.7353302,62873.0,62872.0,0.00164]
[1728672494792,0.264053,62872.0,62868.0,0.00164]
[1728672495019,0.27881855,62872.0,62868.0,0.00164]
[1728672495234,0.44004256,62872.0,62868.0,0.00164]
[1728672496281,0.16406,62869.0,62868.0,0.00164]
[1728672496490,0.42647195,62869.0,62868.0,0.00164]
[1728672497797,0.159068,62866.0,62864.0,0.00164]
[1728672498048,0.27383463,62866.0,62864.0,0.00164]
[1728672498282,0.42147995,62866.0,62864.0,0.00164]
[1728672498533,0.58270396,62866.0,62864.0,0.00164]
[1728672498973,0.58770396,62866.0,62865.0,0.00264]
[1728672499190,0.58770396,62866.0,62853.0,0.176]
[1728672499191,0.159096,62855.0,62853.0,0.176]
[1728672499405,0.45438664,62855.0,62853.0,0.176]
[1728672500466,0.30674132,62855.0,62853.0,0.176]
[1728672501287,0.30774132,62855.0,62853.0,0.176]
[1728672502114,0.30874132,62855.0,62853.0,0.176]
[1728672502321,0.32352702,62855.0,62853.0,0.176]
[1728672503978,0.6951413,62855.0,62853.0,0.176]
[1728672504182,0.49484789,62855.0,62853.0,0.176]
[1728672505009,0.59484789,62855.0,62853.0,0.0805]
[1728672505650,0.59484789,62855.0,62849.0,0.0767]
[1728672507120,0.59490497,62855.0,62849.0,0.0767]
[1728672508389,0.44725965,62855.0,62849.0,0.0767]
[1728672508817,0.44725965,62855.0,62843.0,0.24193694]
[1728672509014,0.44725965,62855.0,62854.0,0.171842]
[1728672509685,0.44738221,62855.0,62854.0,0.171842]
[1728672510751,0.44538221,62855.0,62854.0,0.171842]
[1728672511172,0.44538221,62855.0,62854.0,0.172842]
[1728672511627,0.44538221,62855.0,62854.0,0.174842]
[1728672512073,0.44538221,62855.0,62854.0,0.175842]
[1728672513837,0.34538221,62855.0,62854.0,0.175842]
[1728672514655,0.30674132,62855.0,62854.0,0.175842]
[1728672514881,0.345408,62855.0,62854.0,0.175842]
[1728672515490,0.186312,62855.0,62854.0,0.175842]
[1728672517008,0.318167,62860.0,62854.0,0.175842]
[1728672517233,0.14764532,62855.0,62854.0,0.175842]
[1728672517896,0.14764532,62855.0,62854.0,0.174842]
[1728672518111,0.14764532,62855.0,62854.0,0.171842]
[1728672518945,0.14764532,62855.0,62854.0,0.173842]
[1728672519212,0.159091,62857.0,62854.0,0.173842]
[1728672519420,0.14764532,62858.0,62854.0,0.173842]
[1728672519631,0.159094,62856.0,62854.0,0.173842]
[1728672520129,0.159094,62856.0,62854.0,0.174842]
[1728672520543,0.159094,62856.0,62854.0,0.173842]
[1728672520743,0.159094,62856.0,62854.0,0.171842]
[1728672521349,0.30674132,62855.0,62854.0,0.171842]
[1728672521772,0.30674132,62855.0,62854.0,0.172842]
[1728672522356,0.30674132,62855.0,62854.0,0.171842]
[1728672522697,0.30674132,62855.0,62854.0,0.173842]
[1728672522904,0.14764532,62855.0,62854.0,0.173842]
[1728672523330,0.14764532,62855.0,62854.0,0.174842]
[1728672524671,0.30674132,62855.0,62854.0,0.174842]
[1728672525456,0.14764532,62855.0,62854.0,0.174842]
[1728672526492,0.30674132,62855.0,62854.0,0.174842]
[1728672527112,0.14764532,62855.0,62854.0,0.174842]
[1728672529069,0.16254324,62855.0,62854.0,0.174842]
[1728672530916,0.01489792,62855.0,62854.0,0.174842]
[1728672536854,0.01490466,62855.0,62854.0,0.174842]
[1728672539964,0.25868895,62857.0,62854.0,0.174842]
[1728672540202,0.01491511,62856.0,62854.0,0.174842]
[1728672540434,0.01491511,62855.0,62854.0,0.174842]
[1728672540655,0.01491511,62855.0,62854.0,0.5979438]
[1728672540867,0.01491511,62855.0,62854.0,0.86536355]
[1728672541074,0.01491511,62855.0,62854.0,0.49316401]
[1728672541281,0.01491511,62855.0,62854.0,0.33306601]
[1728672541493,0.01490721,62855.0,62854.0,0.33306601]
[1728672541728,0.01490721,62855.0,62854.0,0.38075339]
[1728672542153,0.01490721,62855.0,62854.0,0.33306601]
[1728672542372,0.159084,62860.0,62854.0,0.33406601]
[1728672542590,0.25365828,62859.0,62855.0,0.16122401]
[1728672542803,0.01654562,62858.0,62855.0,0.16122401]
[1728672543045,0.01490362,62857.0,62855.0,0.16122401]
[1728672543260,0.01490362,62856.0,62855.0,0.16122401]
[1728672546052,0.001642,62858.0,62855.0,0.16122401]
[1728672546265,0.0148817,62857.0,62855.0,0.16122401]
[1728672546464,0.01488112,62856.0,62855.0,0.16122401]
[1728672547092,0.01488112,62856.0,62855.0,0.32032001]
[1728672547300,0.001642,62858.0,62855.0,0.20991139]
[1728672547507,0.001642,62858.0,62857.0,0.240691]
[1728672547716,0.001642,62858.0,62857.0,0.40509646]
[1728672547921,0.001642,62858.0,62857.0,0.40191501]
[1728672548141,0.001642,62858.0,62857.0,0.44955757]
[1728672548967,0.003642,62858.0,62857.0,0.40191501]
[1728672550668,0.004642,62858.0,62857.0,0.40191501]
[1728672559478,0.004642,62858.0,62857.0,0.4168028]
[1728672560435,0.014642,62858.0,62857.0,0.4168028]
[1728672560955,0.014642,62858.0,62857.0,0.41680281]
[1728672562107,0.014642,62858.0,62857.0,0.25771181]
[1728672562507,0.014642,62858.0,62857.0,0.41680281]
[1728672563134,0.014642,62858.0,62857.0,0.25771181]
[1728672563337,0.17373,62858.0,62857.0,0.0964878]
[1728672563550,0.17373,62858.0,62857.0,0.0148878]
[1728672563551,0.18860197,62858.0,62857.0,0.0148878]
[1728672564220,0.61940787,62858.0,62857.0,0.0148878]
[1728672564396,0.61940787,62858.0,62854.0,0.001642]
[1728672564397,0.259096,62855.0,62854.0,0.001642]
[1728672564611,0.4582919,62855.0,62854.0,0.001642]
[1728672564878,0.48208611,62855.0,62854.0,0.001642]
[1728672566053,0.48208611,62855.0,62854.0,0.003642]
[1728672567151,0.48208611,62855.0,62854.0,0.005642]
[1728672568190,0.4582919,62855.0,62854.0,0.005642]
[1728672568407,0.48207065,62855.0,62854.0,0.005642]
[1728672568646,0.3824727,62855.0,62854.0,0.005642]
[1728672569860,0.38246875,62855.0,62854.0,0.005642]
[1728672571095,0.2828708,62855.0,62854.0,0.005642]
[1728672571281,0.38246875,62855.0,62854.0,0.005642]
[1728672571489,0.38246292,62855.0,62854.0,0.005642]
[1728672571688,0.48206087,62855.0,62854.0,0.005642]
[1728672578535,0.4582919,62855.0,62854.0,0.005642]
[1728672578757,0.48204108,62855.0,62854.0,0.005642]
[1728672578973,0.48203939,62855.0,62854.0,0.005642]
[1728672582121,0.4582919,62855.0,62854.0,0.005642]
[1728672582321,0.48205391,62855.0,62854.0,0.005642]
[1728672589784,0.4582919,62855.0,62854.0,0.005642]
[1728672590031,0.48206601,62855.0,62854.0,0.005642]
[1728672592762,0.72082067,62855.0,62854.0,0.005642]
[1728672592970,0.48206601,62855.0,62854.0,0.005642]
[1728672593174,0.48209282,62855.0,62854.0,0.005642]
[1728672593805,0.48209282,62855.0,62854.0,0.003642]
[1728672593983,0.48709282,62855.0,62854.0,0.003642]
[1728672594628,0.48209282,62855.0,62854.0,0.003642]
[1728672595006,0.48209282,62855.0,62854.0,0.001642]
[1728672595232,0.48609282,62855.0,62854.0,0.001642]
[1728672595665,0.48209282,62855.0,62854.0,0.001642]
[1728672595892,0.49709282,62855.0,62854.0,0.003642]
[1728672597784,0.4732919,62855.0,62854.0,0.003642]
[1728672597993,0.49710982,62855.0,62854.0,0.003642]
[1728672600489,0.4732919,62855.0,62854.0,0.003642]
[1728672600715,0.4971013,62855.0,62854.0,0.003642]
[1728672601462,0.49708662,62855.0,62854.0,0.003642]
[1728672602719,0.13879472,62855.0,62854.0,0.096642]
[1728672602943,0.29789072,62855.0,62854.0,0.096642]
[1728672603154,0.138801,62855.0,62854.0,0.096642]
[1728672603520,0.130801,62855.0,62854.0,0.095642]
[1728672603722,0.289897,62855.0,62854.0,0.095642]
[1728672603935,0.289897,62855.0,62854.0,0.097642]
[1728672604361,0.282897,62855.0,62854.0,0.096642]
[1728672604741,0.282897,62855.0,62854.0,0.098642]
[1728672604962,0.282897,62855.0,62854.0,0.095]
[1728672606561,0.182881,62855.0,62854.0,0.095]
[1728672606975,0.282881,62855.0,62854.0,0.095]
[1728672612876,0.282881,62855.0,62854.0,0.09582]
[1728672613659,0.259096,62855.0,62854.0,0.09582]
[1728672613893,0.28287305,62855.0,62854.0,0.09582]
[1728672616952,0.382471,62855.0,62854.0,0.09582]
[1728672617161,0.38246959,62855.0,62854.0,0.09582]
[1728672619175,0.48206754,62855.0,62854.0,0.09582]
[1728672621056,0.38247005,62855.0,62854.0,0.09582]
[1728672624100,0.35869395,62855.0,62854.0,0.09582]
[1728672624550,0.38411625,62855.0,62854.0,0.09582]
[1728672630756,0.38412679,62855.0,62854.0,0.09582]
[1728672631188,0.36033395,62855.0,62854.0,0.09582]
[1728672631397,0.38412719,62855.0,62854.0,0.09582]
[1728672632071,0.38413142,62855.0,62854.0,0.09582]
[1728672632285,0.36033395,62855.0,62854.0,0.09582]
[1728672632493,0.38413895,62855.0,62854.0,0.09582]
[1728672632966,0.22504295,62855.0,62854.0,0.09582]
[1728672633175,0.38413895,62855.0,62854.0,0.09582]
[1728672634409,0.284541,62855.0,62854.0,0.09582]
[1728672634613,0.025445,62855.0,62854.0,0.09582]
[1728672634827,0.184541,62855.0,62854.0,0.09582]
[1728672635036,0.284541,62855.0,62854.0,0.09582]
[1728672640278,0.38413895,62855.0,62854.0,0.00482]
[1728672640488,0.54550866,62855.0,62854.0,0.00482]
[1728672640740,0.4837369,62855.0,62854.0,0.00482]
[1728672641387,0.38413895,62855.0,62854.0,0.00482]
[1728672642033,0.4837369,62855.0,62854.0,0.00482]
[1728672642246,0.4599319,62855.0,62854.0,0.00482]
[1728672642457,0.48373591,62855.0,62854.0,0.00482]
[1728672644569,0.28454001,62855.0,62854.0,0.00482]
[1728672644764,0.38413796,62855.0,62854.0,0.00482]
[1728672648966,0.48373591,62855.0,62854.0,0.00482]
[1728672650714,0.38413796,62855.0,62854.0,0.00482]
[1728672651199,0.28454001,62855.0,62854.0,0.00482]
[1728672651408,0.38413796,62855.0,62854.0,0.00482]
[1728672652854,0.36033395,62855.0,62854.0,0.00482]
[1728672653264,0.38411661,62855.0,62854.0,0.00482]
[1728672656409,0.38411913,62855.0,62854.0,0.00482]
[1728672660570,0.28452118,62855.0,62854.0,0.00482]
[1728672661254,0.02542518,62855.0,62854.0,0.18092]
[1728672661733,0.02542518,62855.0,62854.0,0.19051178]
[1728672661976,0.00164,62855.0,62854.0,0.40052249]
[1728672662250,0.00164,62855.0,62854.0,0.55856477]
[1728672662508,0.00164,62855.0,62854.0,0.51083379]
[1728672663017,0.00164,62855.0,62854.0,0.68490236]
[1728672663260,0.00464,62855.0,62854.0,0.68290236]
[1728672663486,0.00764,62855.0,62854.0,0.80222982]
[1728672663749,0.00164,62855.0,62854.0,0.68290236]
[1728672664194,0.00564,62855.0,62854.0,0.80202488]
[1728672664640,0.00564,62855.0,62854.0,0.80542895]
[1728672664854,0.001642,62858.0,62857.0,0.43298895]
[1728672665060,0.001642,62858.0,62857.0,0.79321017]
[1728672665469,0.001642,62858.0,62857.0,0.7942576]
[1728672665674,0.001642,62858.0,62857.0,0.91132906]
[1728672666087,0.001642,62858.0,62857.0,0.92620484]
[1728672666317,0.001642,62858.0,62857.0,0.80713338]
[1728672666526,0.001642,62858.0,62857.0,0.7962576]
[1728672666727,0.001642,62858.0,62857.0,0.91725633]
[1728672667341,0.001642,62858.0,62857.0,0.91325633]
[1728672667546,0.001642,62858.0,62857.0,0.7992576]
[1728672667749,0.001642,62858.0,62857.0,0.8022576]
[1728672667951,0.001642,62858.0,62857.0,0.70265965]
[1728672668360,0.001642,62858.0,62857.0,0.70065965]
[1728672668566,0.001642,62858.0,62857.0,0.70028745]
[1728672668797,0.001642,62858.0,62857.0,0.79541012]
[1728672669000,0.001642,62858.0,62857.0,0.79741012]
[1728672669209,0.001642,62858.0,62857.0,0.79441012]
[1728672669413,0.001642,62858.0,62857.0,0.79841012]
[1728672669645,0.001642,62858.0,62857.0,0.70328745]
[1728672670546,0.001642,62858.0,62857.0,0.77458396]
[1728672671455,0.001642,62858.0,62857.0,0.70328745]
[1728672671660,0.001642,62858.0,62857.0,0.77456569]
[1728672672087,0.001642,62858.0,62857.0,0.77056569]
[1728672672514,0.001642,62858.0,62857.0,0.69428745]
[1728672672735,0.001642,62864.0,62863.0,0.46557395]
[1728672672945,0.001642,62864.0,62863.0,0.67430219]
[1728672672946,0.24039666,62864.0,62863.0,0.67430219]
[1728672673159,0.24039666,62864.0,62863.0,0.73633125]
[1728672673400,0.001642,62864.0,62863.0,0.90718555]
[1728672673624,0.001642,62864.0,62863.0,1.01127318]
[1728672673856,0.001642,62872.0,62871.0,0.43365295]
[1728672674059,0.001642,62872.0,62871.0,0.59487696]
[1728672674696,0.001642,62872.0,62871.0,0.59687696]
[1728672674930,0.001642,62872.0,62871.0,0.61987696]
[1728672676456,0.001642,62872.0,62871.0,0.62387696]
[1728672676658,0.001642,62872.0,62871.0,0.62785354]
[1728672676862,0.001642,62872.0,62871.0,0.62385354]
[1728672677276,0.001642,62872.0,62871.0,0.62585354]
[1728672677502,0.001642,62872.0,62871.0,0.63085354]
[1728672681371,0.001642,62872.0,62871.0,0.63681073]
[1728672684693,0.001642,62872.0,62871.0,0.73681073]
[1728672685141,0.23875466,62888.0,62887.0,0.159015]
[1728672685358,0.23875466,62888.0,62887.0,0.59543696]
[1728672685599,0.23875466,62888.0,62887.0,0.49673466]
[1728672686027,0.23875466,62888.0,62887.0,0.23891966]
[1728672686244,0.09959795,62890.0,62887.0,0.39893366]
[1728672686445,0.09959795,62890.0,62888.0,0.16122401]
[1728672686894,0.39774966,62895.0,62888.0,0.16122401]
[1728672686895,0.09959795,62894.0,62888.0,0.16122401]
[1728672687325,0.23875466,62895.0,62888.0,0.32341583]
[1728672687541,0.23875466,62895.0,62888.0,0.41663601]
[1728672688172,0.23875466,62895.0,62888.0,0.52471647]
[1728672688379,0.23875466,62895.0,62888.0,0.52971647]
[1728672688600,0.23875466,62895.0,62888.0,0.61151647]
[1728672689042,0.23875466,62895.0,62888.0,0.61240706]